fUSD/lending_fUSD_20241127
["ID","MTS","AMOUNT","RATE_DAILY","PERIOD"]
[343495617,1732671034563,-215.22275635,0.00016999,2]
[343495618,1732671034573,-500.0,0.00016999,2]
[343495619,1732671034583,-500.0,0.00016999,2]
[343495620,1732671034594,-500.0,0.00016999,2]
[343495621,1732671034604,-500.0,0.00016999,2]
[343495622,1732671034614,-500.0,0.00016999,2]
[343495623,1732671034626,-500.0,0.00016999,2]
[343495624,1732671034636,-500.0,0.00016999,2]
[343495625,1732671034646,-500.0,0.00016999,2]
[343495626,1732671034655,-500.0,0.00016999,2]
[343495627,1732671034665,-500.0,0.00016999,2]
[343495628,1732671034675,-500.0,0.00016999,2]
[343495629,1732671034686,-500.0,0.00016999,2]
[343495630,1732671034696,-437.74623522,0.00016999,2]
[343495631,1732671034706,-291.9044756,0.00016999,2]
[343495632,1732671034715,-501.65063999,0.00016999,2]
[343495633,1732671034728,-2991.5169487,0.00016999,4]
[343495634,1732671034738,-12275.27101457,0.00017,2]
[343495635,1732671034748,-56468.8496526,0.00017,2]
[343495638,1732671038375,-2388.0483,0.000169,2]
[343495639,1732671038386,-3165574.80067285,0.00017,2]
[343495640,1732671038395,-42897.30576735,0.00017,2]
[343495641,1732671038406,-15460576.4238149,0.00017,2]
[343495642,1732671038417,-6940.92300418,0.00017,2]
[343495643,1732671038428,-2511.73338541,0.00017,2]
[343495644,1732671038473,-813.05236172,0.00017,2]
[343495657,1732671040284,-286.38735822,0.00016999,2]
[343495658,1732671040297,-213.61264178,0.00016999,2]
[343495659,1732671040307,-500.0,0.00016999,2]
[343495662,1732671040543,-500.0,0.00016999,2]
[343495664,1732671040554,-500.0,0.00016999,2]
[343495666,1732671040564,-500.0,0.00016999,2]
[343495667,1732671040574,-7031.21167811,0.00017,2]
[343495670,1732671040586,-12959.89481877,0.00017,2]
[343495672,1732671040598,-268.22086495,0.00017,2]
[343495674,1732671040609,-997.14,0.00017,2]
[343495676,1732671040620,-18556.8396,0.00017,2]
[343495679,1732671040641,-750.0195,0.00017,2]
[343495879,1732671043364,-500.0,0.00016999,2]
[343495880,1732671043374,-500.0,0.00016999,2]
[343495881,1732671043382,-229.33177709,0.00016999,2]
[343495882,1732671043391,-500.0,0.00016999,2]
[343495883,1732671043400,-500.0,0.00016999,2]
[343495884,1732671043409,-500.0,0.00016999,2]
[343495885,1732671043418,-500.0,0.00016999,2]
[343495886,1732671043428,-500.0,0.00016999,2]
[343495887,1732671043438,-500.0,0.00016999,2]
[343495888,1732671043447,-500.0,0.00016999,2]
[343495889,1732671043456,-500.0,0.00016999,2]
[343495890,1732671043469,-500.0,0.00016999,2]
[343495891,1732671043479,-43178.65113781,0.00017,2]
[343495892,1732671043490,-4181.68842,0.00017,2]
[343495893,1732671043512,-201.77358,0.00016999,2]
[343495894,1732671043522,-1943.52324317,0.00017,2]
[343495895,1732671043534,-4213.50517507,0.00017,2]
[343495979,1732671046291,-27777.0,0.00017,2]
[343495985,1732671315786,153.47,0.00016658,30]
[343495986,1732671605999,2000.0,0.00014,2]
[343495988,1732671970053,364.0,0.00023,120]
[343495989,1732671994134,-302.54,0.00014007,2]
[343495990,1732671994156,-115.25185927,0.00015639,2]
[343496006,1732672058493,153.47,0.00016658,30]
[343496014,1732672232506,-55.62814073,0.00015639,2]
[343496015,1732672232516,-250.0,0.00015879,2]
[343496016,1732672232530,-158.28,0.00015931,2]
[343496017,1732672232540,-261.12698625,0.00015984,2]
[343496018,1732672232551,-738.87301375,0.00015984,2]
[343496019,1732672232560,-167.34,0.00016031,2]
[343496020,1732672232570,-380.35,0.00016059,2]
[343496021,1732672232580,-196.55,0.0001621,2]
[343496022,1732672232589,-166.6,0.00016271,2]
[343496023,1732672232598,-302.54,0.00016271,2]
[343496024,1732672232608,-260.0,0.00016329,2]
[343496025,1732672232617,-300.0,0.00016499,2]
[343496026,1732672232627,-20000.0,0.000165,2]
[343496027,1732672232636,-170.88,0.00016517,2]
[343496028,1732672232645,-187.62,0.00016712,2]
[343496029,1732672232654,-858.73316121,0.00016745,2]
[343496030,1732672232664,-169.5774,0.000168,2]
[343496031,1732672232673,-568.6124,0.000168,2]
[343496032,1732672232683,-277.65136778,0.000168,2]
[343496033,1732672232692,-293.09091,0.0001683,2]
[343496034,1732672232702,-459.19031897,0.0001689,2]
[343496035,1732672232711,-4130.49698956,0.00016899,3]
[343496036,1732672232721,-580.4635,0.000169,2]
[343496037,1732672232730,-42711.71170531,0.000169,2]
[343496107,1732672238416,-496.83510052,0.000169,2]
[343496108,1732672238847,-78394.89189417,0.000169,2]
[343496109,1732672238857,-553.043,0.000169,2]
[343496110,1732672238867,-20000.0,0.000169,2]
[343496111,1732672238877,-500.0,0.00016973,2]
[343496112,1732672238887,-246.846,0.00016997,2]
[343496113,1732672238897,-169.58676819,0.00016997,2]
[343496114,1732672238907,-500.0,0.00016998,2]
[343496115,1732672238917,-513.54426524,0.00016998,2]
[343496116,1732672238926,-524.08497158,0.00016998,2]
[343496117,1732672238936,-360.80628459,0.00016998,2]
[343496118,1732672238945,-501.04806711,0.00016998,2]
[343496119,1732672238955,-500.0,0.00016998,2]
[343496120,1732672238965,-546.40819671,0.00016998,2]
[343496121,1732672238975,-500.0,0.00016998,2]
[343496122,1732672238985,-540.7961113,0.00016998,2]
[343496123,1732672238994,-623.90111006,0.00016998,2]
[343496124,1732672239010,-500.0,0.00016998,2]
[343496125,1732672239021,-521.83205634,0.00016998,2]
[343496126,1732672239030,-500.0,0.00016998,2]
[343496127,1732672239040,-543.84613943,0.00016998,2]
[343496128,1732672239050,-449.96409544,0.00016998,2]
[343496129,1732672239060,-500.0,0.00016998,2]
[343496130,1732672239070,-529.62742671,0.00016998,2]
[343496131,1732672239080,-500.0,0.00016998,2]
[343496132,1732672239090,-525.2450545,0.00016998,2]
[343496133,1732672239100,-500.0,0.00016998,2]
[343496134,1732672239111,-526.43790474,0.00016998,2]
[343496135,1732672239120,-289.60055283,0.00016998,2]
[343496136,1732672239131,-543.90242083,0.00016998,2]
[343496137,1732672239141,-649.07356369,0.00016998,2]
[343496138,1732672239152,-500.0,0.00016998,2]
[343496139,1732672239161,-500.0,0.00016998,2]
[343496140,1732672239172,-500.0,0.00016998,2]
[343496141,1732672239182,-510.2497401,0.00016998,2]
[343496142,1732672239192,-500.0,0.00016998,2]
[343496143,1732672239202,-716.46,0.00016998,2]
[343496144,1732672239211,-522.55771072,0.00016998,2]
[343496145,1732672239221,-513.53677794,0.00016998,2]
[343496146,1732672239232,-505.13729735,0.00016998,2]
[343496147,1732672239243,-535.67404446,0.00016998,2]
[343496148,1732672239260,-500.0,0.00016998,2]
[343496149,1732672239270,-500.0,0.00016998,2]
[343496150,1732672239281,-500.0,0.00016998,2]
[343496151,1732672239291,-500.0,0.00016998,2]
[343496152,1732672239303,-512.84289667,0.00016998,2]
[343496153,1732672239313,-536.86570338,0.00016998,2]
[343496154,1732672239323,-507.75,0.00016998,2]
[343496155,1732672239332,-599.90290113,0.00016998,2]
[343496156,1732672239343,-507.75,0.00016998,2]
[343496157,1732672239354,-514.88332396,0.00016998,2]
[343496158,1732672239364,-500.0,0.00016998,2]
[343496159,1732672239373,-500.0,0.00016998,2]
[343496160,1732672239383,-522.08415455,0.00016998,2]
[343496161,1732672239393,-500.0,0.00016998,2]
[343496162,1732672239403,-500.0,0.00016998,2]
[343496163,1732672239413,-607.22975858,0.00016998,2]
[343496164,1732672239423,-500.0,0.00016998,2]
[343496165,1732672239433,-515.85906453,0.00016998,2]
[343496166,1732672239442,-518.10444731,0.00016998,2]
[343496167,1732672239452,-500.0,0.00016998,2]
[343496168,1732672239462,-500.0,0.00016998,2]
[343496169,1732672239472,-510.13525894,0.00016998,2]
[343496170,1732672239481,-500.0,0.00016998,2]
[343496171,1732672239491,-500.0,0.00016998,2]
[343496172,1732672239504,-377.9356627,0.00016998,2]
[343496173,1732672239515,-516.31062382,0.00016998,2]
[343496174,1732672239524,-500.0,0.00016998,2]
[343496175,1732672239535,-524.5161579,0.00016998,2]
[343496176,1732672239545,-515.35661026,0.00016998,2]
[343496177,1732672239562,-514.10938476,0.00016998,2]
[343496178,1732672239585,-500.0,0.00016998,2]
[343496179,1732672239595,-500.0,0.00016998,2]
[343496180,1732672239605,-525.35504453,0.00016998,2]
[343496181,1732672239615,-517.34558435,0.00016998,2]
[343496182,1732672239624,-526.99221878,0.00016998,2]
[343496183,1732672239634,-500.0,0.00016998,2]
[343496184,1732672239644,-500.0,0.00016998,2]
[343496185,1732672239654,-500.0,0.00016998,2]
[343496186,1732672239663,-500.0,0.00016998,2]
[343496187,1732672239673,-517.07073366,0.00016998,2]
[343496188,1732672239684,-183.46555544,0.00016998,2]
[343496189,1732672239694,-210.09267781,0.00016998,2]
[343496190,1732672239704,-510.39911394,0.00016998,2]
[343496191,1732672239714,-500.0,0.00016998,2]
[343496192,1732672239724,-500.0,0.00016998,2]
[343496193,1732672239735,-511.80835357,0.00016998,2]
[343496194,1732672239745,-514.51632337,0.00016998,2]
[343496195,1732672239756,-500.0,0.00016998,2]
[343496196,1732672239767,-500.0,0.00016998,2]
[343496197,1732672239777,-281.96818863,0.00016998,2]
[343496198,1732672239788,-183.29869866,0.00016998,2]
[343496199,1732672239799,-152.39395967,0.00016998,2]
[343496200,1732672239815,-203.4997373,0.00016998,2]
[343496201,1732672239825,-516.79908252,0.00016998,2]
[343496202,1732672239834,-500.0,0.00016998,2]
[343496203,1732672239845,-500.0,0.00016998,2]
[343496204,1732672239856,-521.79660866,0.00016998,2]
[343496205,1732672239866,-509.87704699,0.00016998,2]
[343496206,1732672239876,-571.01127607,0.00016998,2]
[343496207,1732672239886,-1692.26,0.00016998,2]
[343496208,1732672239896,-1692.26,0.00016998,2]
[343496209,1732672239907,-500.0,0.00016998,2]
[343496210,1732672239917,-578.29482752,0.00016998,2]
[343496211,1732672239927,-581.64902832,0.00016998,2]
[343496212,1732672239937,-500.0,0.00016998,2]
[343496213,1732672239946,-500.0,0.00016998,2]
[343496214,1732672239956,-530.54879032,0.00016998,2]
[343496215,1732672239966,-500.0,0.00016998,2]
[343496216,1732672239976,-500.0,0.00016998,2]
[343496217,1732672239986,-510.5833897,0.00016998,2]
[343496218,1732672239996,-500.0,0.00016998,2]
[343496219,1732672240007,-500.0,0.00016998,2]
[343496220,1732672240017,-184.42480106,0.00016998,2]
[343496221,1732672240028,-251.15333602,0.00016998,2]
[343496222,1732672240038,-532.14679037,0.00016998,2]
[343496223,1732672240048,-500.0,0.00016998,2]
[343496224,1732672240058,-500.0,0.00016998,2]
[343496225,1732672240068,-500.0,0.00016998,2]
[343496226,1732672240078,-500.0,0.00016998,2]
[343496227,1732672240088,-510.10307056,0.00016998,2]
[343496228,1732672240098,-520.86759399,0.00016998,2]
[343496229,1732672240108,-960.41,0.00016998,2]
[343496230,1732672240118,-960.41,0.00016998,2]
[343496231,1732672240128,-500.0,0.00016998,2]
[343496232,1732672240138,-500.0,0.00016998,2]
[343496233,1732672240147,-500.0,0.00016998,2]
[343496234,1732672240157,-500.0,0.00016998,2]
[343496235,1732672240167,-514.87352501,0.00016998,2]
[343496236,1732672240176,-500.0,0.00016998,2]
[343496237,1732672240186,-150.71023064,0.00016998,2]
[343496238,1732672240196,-513.87764946,0.00016998,2]
[343496239,1732672240207,-500.0,0.00016998,2]
[343496240,1732672240217,-510.61744956,0.00016998,2]
[343496241,1732672240227,-524.44607891,0.00016998,2]
[343496242,1732672240238,-518.8168611,0.00016998,2]
[343496243,1732672240249,-167.33387383,0.00016998,2]
[343496244,1732672240259,-500.0,0.00016998,2]
[343496245,1732672240268,-505.06115184,0.00016998,2]
[343496246,1732672240278,-510.59405838,0.00016998,2]
[343496247,1732672240288,-500.0,0.00016998,2]
[343496248,1732672240300,-500.0,0.00016998,2]
[343496249,1732672240309,-500.0,0.00016998,2]
[343496250,1732672240319,-511.51214588,0.00016998,2]
[343496251,1732672240328,-500.0,0.00016998,2]
[343496252,1732672240339,-506.53024093,0.00016998,2]
[343496253,1732672240348,-500.0,0.00016998,2]
[343496254,1732672240358,-503.06647465,0.00016998,2]
[343496255,1732672240368,-510.4647986,0.00016998,2]
[343496256,1732672240379,-500.0,0.00016998,2]
[343496257,1732672240389,-500.0,0.00016998,2]
[343496258,1732672240399,-500.0,0.00016998,2]
[343496259,1732672240410,-500.0,0.00016998,2]
[343496260,1732672240419,-500.0,0.00016998,2]
[343496261,1732672240429,-523.23726226,0.00016998,2]
[343496262,1732672240439,-500.0,0.00016998,2]
[343496264,1732672240450,-500.0,0.00016998,2]
[343496266,1732672240465,-504.40187872,0.00016998,2]
[343496268,1732672240475,-523.65,0.00016998,2]
[343496270,1732672240484,-523.65,0.00016998,2]
[343496271,1732672240494,-503.98065021,0.00016998,2]
[343496272,1732672240507,-500.0,0.00016998,2]
[343496273,1732672240517,-500.0,0.00016998,2]
[343496274,1732672240526,-500.0,0.00016998,2]
[343496275,1732672240536,-502.93840784,0.00016998,2]
[343496276,1732672240545,-507.03140371,0.00016998,2]
[343496277,1732672240555,-500.0,0.00016998,2]
[343496278,1732672240564,-500.0,0.00016998,2]
[343496279,1732672240574,-509.32792844,0.00016998,2]
[343496280,1732672240585,-508.3571078,0.00016998,2]
[343496281,1732672240594,-503.95077048,0.00016998,2]
[343496282,1732672240604,-500.0,0.00016998,2]
[343496283,1732672240614,-500.0,0.00016998,2]
[343496284,1732672240624,-500.0,0.00016998,2]
[343496285,1732672240635,-539.8036386,0.00016998,2]
[343496286,1732672240644,-258.62,0.00016998,2]
[343496287,1732672240654,-525.10305194,0.00016998,2]
[343496288,1732672240664,-502.97778294,0.00016998,2]
[343496289,1732672240674,-505.80042891,0.00016998,2]
[343496290,1732672240684,-507.77479986,0.00016998,2]
[343496291,1732672240695,-500.0,0.00016998,2]
[343496292,1732672240704,-500.0,0.00016998,2]
[343496293,1732672240714,-287.29635169,0.00016998,2]
[343496294,1732672240723,-512.42070713,0.00016998,2]
[343496295,1732672240733,-268.24382191,0.00016998,2]
[343496296,1732672240742,-500.0,0.00016998,2]
[343496297,1732672240753,-500.0,0.00016998,2]
[343496298,1732672240763,-315.14493772,0.00016999,2]
[343496299,1732672240773,-537.88802037,0.00016999,2]
[343496300,1732672240783,-512.2900789,0.00016999,2]
[343496301,1732672240794,-506.5339521,0.00016999,2]
[343496302,1732672240806,-509.48949004,0.00016999,2]
[343496303,1732672240816,-509.55422657,0.00016999,2]
[343496304,1732672240828,-514.19134935,0.00016999,2]
[343496305,1732672240837,-506.74299548,0.00016999,2]
[343496306,1732672240847,-504.982604,0.00016999,2]
[343496307,1732672240856,-506.62942989,0.00016999,2]
[343496308,1732672240867,-533.27852782,0.00016999,2]
[343496309,1732672240876,-514.48131339,0.00016999,2]
[343496310,1732672240886,-504.77832239,0.00016999,2]
[343496311,1732672240896,-510.72859048,0.00016999,2]
[343496312,1732672240907,-512.76403745,0.00016999,2]
[343496313,1732672240917,-507.71289949,0.00016999,2]
[343496314,1732672240927,-505.73689722,0.00016999,2]
[343496315,1732672240937,-509.76393594,0.00016999,2]
[343496316,1732672240946,-516.02539137,0.00016999,2]
[343496317,1732672240957,-519.36240363,0.00016999,2]
[343496318,1732672240967,-509.84160982,0.00016999,2]
[343496319,1732672240976,-511.10515588,0.00016999,2]
[343496320,1732672240986,-503.05390936,0.00016999,2]
[343496321,1732672240995,-505.84362192,0.00016999,2]
[343496322,1732672241007,-500.0,0.00016999,2]
[343496323,1732672241016,-527.55911125,0.00016999,2]
[343496324,1732672241026,-519.30229149,0.00016999,2]
[343496325,1732672241036,-500.0,0.00016999,2]
[343496326,1732672241046,-500.0,0.00016999,2]
[343496327,1732672241056,-500.0,0.00016999,2]
[343496328,1732672241067,-500.0,0.00016999,2]
[343496329,1732672241076,-500.0,0.00016999,2]
[343496330,1732672241086,-500.0,0.00016999,2]
[343496331,1732672241096,-500.0,0.00016999,2]
[343496332,1732672241106,-500.0,0.00016999,2]
[343496333,1732672241115,-500.0,0.00016999,2]
[343496334,1732672241125,-392.06378626,0.00016999,2]
[343496335,1732672241135,-508.62424569,0.00016999,2]
[343496336,1732672241145,-488.75036191,0.00016999,2]
[343496337,1732672241155,-475.21992851,0.00016999,2]
[343496338,1732672241165,-509.16649179,0.00016999,2]
[343496339,1732672241175,-504.51310322,0.00016999,2]
[343496340,1732672241185,-510.63225877,0.00016999,2]
[343496341,1732672241195,-503.51784039,0.00016999,2]
[343496342,1732672241204,-517.08311175,0.00016999,2]
[343496343,1732672241213,-512.77853234,0.00016999,2]
[343496344,1732672241223,-500.0,0.00016999,2]
[343496345,1732672241234,-381.87995293,0.00016999,2]
[343496346,1732672241244,-518.4078104,0.00016999,2]
[343496347,1732672241255,-504.86670756,0.00016999,2]
[343496348,1732672241266,-257.17707518,0.00016999,2]
[343496349,1732672241276,-513.38613748,0.00016999,2]
[343496350,1732672241286,-529.55986936,0.00016999,2]
[343496351,1732672241296,-519.3831919,0.00016999,2]
[343496352,1732672241306,-521.56066805,0.00016999,2]
[343496353,1732672241316,-529.08900018,0.00016999,2]
[343496354,1732672241326,-524.90099084,0.00016999,2]
[343496355,1732672241336,-567.53470966,0.00016999,2]
[343496356,1732672241347,-236.12773244,0.00016999,2]
[343496357,1732672241363,-564.82534891,0.00016999,2]
[343496358,1732672241373,-500.0,0.00016999,2]
[343496359,1732672241383,-500.0,0.00016999,2]
[343496360,1732672241394,-500.0,0.00016999,2]
[343496361,1732672241404,-462.94654894,0.00016999,2]
[343496362,1732672241413,-512.19704718,0.00016999,2]
[343496363,1732672241423,-520.72774851,0.00016999,2]
[343496364,1732672241433,-508.60291163,0.00016999,2]
[343496365,1732672241443,-500.0,0.00016999,2]
[343496366,1732672241454,-644.33015321,0.00016999,2]
[343496367,1732672241464,-500.0,0.00016999,2]
[343496368,1732672241475,-500.0,0.00016999,2]
[343496369,1732672241484,-563.39478472,0.00016999,2]
[343496370,1732672241494,-562.04486605,0.00016999,2]
[343496371,1732672241505,-521.81133892,0.00016999,2]
[343496372,1732672241514,-1200.32,0.00016999,2]
[343496373,1732672241524,-502.48315514,0.00016999,2]
[343496374,1732672241534,-500.0,0.00016999,2]
[343496375,1732672241544,-500.0,0.00016999,2]
[343496376,1732672241554,-500.0,0.00016999,2]
[343496377,1732672241564,-500.0,0.00016999,2]
[343496378,1732672241573,-500.0,0.00016999,2]
[343496379,1732672241588,-500.0,0.00016999,2]
[343496380,1732672241598,-500.0,0.00016999,2]
[343496381,1732672241607,-500.0,0.00016999,2]
[343496382,1732672241617,-379.45192175,0.00016999,2]
[343496383,1732672241626,-500.0,0.00016999,2]
[343496384,1732672241635,-500.0,0.00016999,2]
[343496385,1732672241645,-525.60033495,0.00016999,2]
[343496386,1732672241656,-530.75078542,0.00016999,2]
[343496387,1732672241666,-527.6652638,0.00016999,2]
[343496388,1732672241676,-500.0,0.00016999,2]
[343496389,1732672241686,-500.0,0.00016999,2]
[343496390,1732672241696,-500.0,0.00016999,2]
[343496391,1732672241706,-519.01725723,0.00016999,2]
[343496392,1732672241716,-500.0,0.00016999,2]
[343496393,1732672241725,-500.0,0.00016999,2]
[343496394,1732672241735,-500.0,0.00016999,2]
[343496395,1732672241744,-500.0,0.00016999,2]
[343496396,1732672241756,-404.64712825,0.00016999,2]
[343496397,1732672241765,-500.0,0.00016999,2]
[343496398,1732672241775,-421.60214412,0.00016999,2]
[343496399,1732672241785,-500.0,0.00016999,2]
[343496400,1732672241794,-345.43376565,0.00016999,2]
[343496401,1732672241806,-527.1052474,0.00016999,2]
[343496402,1732672241817,-500.0,0.00016999,2]
[343496403,1732672241827,-527.46794005,0.00016999,2]
[343496404,1732672241836,-548.6516049,0.00016999,2]
[343496405,1732672241845,-500.0,0.00016999,2]
[343496406,1732672241857,-500.0,0.00016999,2]
[343496407,1732672241867,-222.14101753,0.00016999,2]
[343496408,1732672241876,-636.58882178,0.00016999,2]
[343496409,1732672241886,-536.97908809,0.00016999,2]
[343496410,1732672241897,-500.0,0.00016999,2]
[343496411,1732672241906,-500.0,0.00016999,2]
[343496412,1732672241916,-500.0,0.00016999,2]
[343496413,1732672241926,-500.0,0.00016999,2]
[343496414,1732672241935,-500.0,0.00016999,2]
[343496415,1732672241945,-500.0,0.00016999,2]
[343496416,1732672241954,-590.13065398,0.00016999,2]
[343496417,1732672241964,-500.0,0.00016999,2]
[343496418,1732672241974,-500.0,0.00016999,2]
[343496419,1732672241984,-500.0,0.00016999,2]
[343496420,1732672241993,-515.41324666,0.00016999,2]
[343496421,1732672242006,-605.18141157,0.00016999,2]
[343496422,1732672242019,-716.46,0.00016999,2]
[343496423,1732672242029,-716.46,0.00016999,2]
[343496424,1732672242038,-716.46,0.00016999,2]
[343496425,1732672242048,-716.46,0.00016999,2]
[343496426,1732672242057,-716.46,0.00016999,2]
[343496427,1732672242067,-716.46,0.00016999,2]
[343496428,1732672242077,-716.46,0.00016999,2]
[343496429,1732672242087,-716.46,0.00016999,2]
[343496430,1732672242096,-716.46,0.00016999,2]
[343496431,1732672242106,-716.46,0.00016999,2]
[343496432,1732672242120,-716.46,0.00016999,2]
[343496433,1732672242129,-716.46,0.00016999,2]
[343496434,1732672242140,-716.46,0.00016999,2]
[343496435,1732672242155,-716.46,0.00016999,2]
[343496436,1732672242164,-716.46,0.00016999,2]
[343496437,1732672242174,-716.46,0.00016999,2]
[343496438,1732672242184,-716.46,0.00016999,2]
[343496439,1732672242194,-716.46,0.00016999,2]
[343496440,1732672242203,-716.46,0.00016999,2]
[343496441,1732672242212,-716.46,0.00016999,2]
[343496442,1732672242222,-716.46,0.00016999,2]
[343496443,1732672242231,-716.46,0.00016999,2]
[343496444,1732672242241,-716.62914308,0.00016999,2]
[343496445,1732672242254,-500.0,0.00016999,2]
[343496446,1732672242264,-634.48341733,0.00016999,2]
[343496447,1732672242274,-500.0,0.00016999,2]
[343496448,1732672242283,-500.0,0.00016999,2]
[343496449,1732672242293,-500.0,0.00016999,2]
[343496450,1732672242303,-293.82679284,0.00016999,2]
[343496451,1732672242314,-507.75,0.00016999,2]
[343496452,1732672242326,-507.75,0.00016999,2]
[343496453,1732672242338,-507.75,0.00016999,2]
[343496454,1732672242349,-507.75,0.00016999,2]
[343496455,1732672242360,-507.75,0.00016999,2]
[343496456,1732672242372,-507.75,0.00016999,2]
[343496457,1732672242382,-507.75,0.00016999,2]
[343496458,1732672242391,-507.75,0.00016999,2]
[343496459,1732672242402,-507.75,0.00016999,2]
[343496460,1732672242411,-507.75,0.00016999,2]
[343496461,1732672242420,-507.75,0.00016999,2]
[343496462,1732672242430,-500.0,0.00016999,2]
[343496463,1732672242440,-507.75,0.00016999,2]
[343496464,1732672242450,-500.0,0.00016999,2]
[343496465,1732672242459,-500.0,0.00016999,2]
[343496466,1732672242469,-507.75,0.00016999,2]
[343496467,1732672242479,-500.0,0.00016999,2]
[343496468,1732672242488,-507.75,0.00016999,2]
[343496469,1732672242498,-500.0,0.00016999,2]
[343496470,1732672242515,-507.75,0.00016999,2]
[343496471,1732672242524,-507.75,0.00016999,2]
[343496472,1732672242534,-500.0,0.00016999,2]
[343496473,1732672242543,-500.0,0.00016999,2]
[343496474,1732672242552,-507.75,0.00016999,2]
[343496475,1732672242561,-500.0,0.00016999,2]
[343496476,1732672242571,-507.75,0.00016999,2]
[343496477,1732672242580,-500.0,0.00016999,2]
[343496478,1732672242589,-507.75,0.00016999,2]
[343496479,1732672242599,-500.0,0.00016999,2]
[343496480,1732672242609,-507.75,0.00016999,2]
[343496481,1732672242619,-500.0,0.00016999,2]
[343496482,1732672242629,-507.75,0.00016999,2]
[343496483,1732672242639,-500.0,0.00016999,2]
[343496484,1732672242658,-507.84982303,0.00016999,2]
[343496485,1732672242673,-500.0,0.00016999,2]
[343496486,1732672242684,-407.81444527,0.00016999,2]
[343496487,1732672242694,-500.0,0.00016999,2]
[343496488,1732672242704,-500.0,0.00016999,2]
[343496489,1732672242715,-500.0,0.00016999,2]
[343496490,1732672242725,-500.0,0.00016999,2]
[343496491,1732672242737,-500.0,0.00016999,2]
[343496492,1732672242747,-500.0,0.00016999,2]
[343496493,1732672242764,-503.69324499,0.00016999,2]
[343496494,1732672242774,-500.0,0.00016999,2]
[343496495,1732672242784,-500.0,0.00016999,2]
[343496496,1732672242794,-459.45683273,0.00016999,2]
[343496497,1732672242804,-500.0,0.00016999,2]
[343496498,1732672242814,-500.0,0.00016999,2]
[343496499,1732672242827,-500.0,0.00016999,2]
[343496500,1732672242836,-500.0,0.00016999,2]
[343496501,1732672242847,-500.0,0.00016999,2]
[343496502,1732672242856,-500.0,0.00016999,2]
[343496503,1732672242868,-500.0,0.00016999,2]
[343496504,1732672242879,-500.0,0.00016999,2]
[343496505,1732672242890,-500.0,0.00016999,2]
[343496506,1732672242901,-500.0,0.00016999,2]
[343496507,1732672242911,-542.96813828,0.00016999,2]
[343496508,1732672242922,-500.0,0.00016999,2]
[343496509,1732672242934,-407.16862245,0.00016999,2]
[343496510,1732672242945,-500.0,0.00016999,2]
[343496511,1732672242956,-500.0,0.00016999,2]
[343496512,1732672242967,-500.0,0.00016999,2]
[343496513,1732672242977,-500.0,0.00016999,2]
[343496514,1732672242987,-500.0,0.00016999,2]
[343496515,1732672242998,-500.0,0.00016999,2]
[343496516,1732672243010,-500.0,0.00016999,2]
[343496517,1732672243021,-500.0,0.00016999,2]
[343496526,1732672243371,-385.37589347,0.00016999,2]
[343496527,1732672243382,-500.0,0.00016999,2]
[343496528,1732672243393,-366.57215447,0.00016999,2]
[343496529,1732672243404,-540.21959385,0.00016999,2]
[343496530,1732672243414,-500.0,0.00016999,2]
[343496531,1732672243424,-500.0,0.00016999,2]
[343496532,1732672243434,-500.0,0.00016999,2]